bitfinex-derivatives/quotes_BTCF0:USTF0_20260119
["timestamp","ask_amount","ask_price","bid_price","bid_amount"]
[1768858295128,0.12874454,93109.0,93097.0,0.010748]
[1768858295527,0.12874454,93109.0,93087.0,0.010749]
[1768858295528,0.03202454,93106.0,93087.0,0.010749]
[1768858295733,0.03202454,93104.0,93087.0,0.010749]
[1768858296033,0.03202454,93104.0,93090.0,0.18016921]
[1768858296333,0.03202454,93104.0,93093.0,0.010748]
[1768858299837,0.03202454,93103.0,93090.0,0.010749]
[1768858300737,0.03202454,93103.0,93091.0,0.010749]
[1768858301037,0.04554714,93102.0,93086.0,0.00016116]
[1768858301234,0.03560181,93101.0,93086.0,0.01091016]
[1768858301434,0.03560181,93101.0,93088.0,0.010749]
[1768858302935,0.03560181,93101.0,93086.0,0.00016116]
[1768858303641,0.03560181,93101.0,93092.0,0.010749]
[1768858306041,0.03560181,93101.0,93086.0,0.00016116]
[1768858307143,0.03560181,93101.0,93089.0,0.010749]
[1768858307530,0.03560181,93101.0,93090.0,0.010749]
[1768858307940,0.03560181,93101.0,93086.0,0.00016116]
[1768858308144,0.03560181,93101.0,93088.0,0.010749]
[1768858316166,0.036093,93100.0,93088.0,0.010749]
[1768858317149,0.036093,93100.0,93086.0,0.00016116]
[1768858317150,0.036093,93100.0,93087.0,0.010749]
[1768858317556,0.04536262,93100.0,93086.0,0.00016116]
[1768858319458,0.04536262,93099.0,93086.0,0.00016116]
[1768858321760,0.04536262,93099.0,93086.0,0.01091016]
[1768858322660,0.04536262,93099.0,93086.0,0.00016116]
[1768858322862,0.04536262,93099.0,93091.0,0.010749]
[1768858324164,0.04536262,93099.0,93088.0,0.010749]
[1768858324665,0.04536262,93099.0,93086.0,0.01091016]
[1768858325163,0.036093,93098.0,93086.0,0.01091016]
[1768858325564,0.036093,93098.0,93087.0,0.010749]
[1768858326260,0.036093,93098.0,93090.0,0.010749]
[1768858327067,0.036093,93098.0,93088.0,0.010749]
[1768858328160,0.036093,93098.0,93086.0,0.00016116]
[1768858329471,0.036093,93098.0,93090.0,0.010749]
[1768858333669,0.036093,93098.0,93091.0,0.010749]
[1768858337771,0.010747,93107.0,93086.0,0.00016116]
[1768858337772,0.00926962,93107.0,93086.0,0.00016116]
[1768858338771,0.00926962,93107.0,93095.0,0.010748]
[1768858339474,0.00926962,93107.0,93092.0,0.010748]
[1768858339875,0.00926962,93101.0,93092.0,0.010748]
[1768858344978,0.00926962,93101.0,93093.0,0.010748]
[1768858346379,0.04822415,93101.0,93086.0,0.00016116]
[1768858346570,0.00998753,93100.0,93086.0,0.00016116]
[1768858347078,0.00998753,93100.0,93091.0,0.010749]
[1768858347968,0.00998753,93100.0,93089.0,0.010749]
[1768858349378,0.00998753,93098.0,93090.0,0.010749]
[1768858351685,0.00998753,93098.0,93086.0,0.00016116]
[1768858351686,0.00998753,93098.0,93087.0,0.010749]
[1768858353184,0.00998753,93098.0,93089.0,0.010749]
[1768858353382,0.03437709,93099.0,93089.0,0.010749]
[1768858353584,0.03437709,93099.0,93092.0,0.010748]
[1768858353986,0.03437709,93099.0,93093.0,0.010748]
[1768858356086,0.03437709,93099.0,93094.0,0.010748]
[1768858357590,0.00998753,93101.0,93094.0,0.010748]
[1768858357787,0.00998753,93104.0,93094.0,0.010748]
[1768858357988,0.04894206,93104.0,93094.0,0.010748]
[1768858358190,0.00998753,93103.0,93094.0,0.010748]
[1768858358489,0.00998753,93103.0,93087.0,0.010749]
[1768858358984,0.00998753,93103.0,93095.0,0.010748]
[1768858362886,0.00998753,93103.0,93093.0,0.010748]
[1768858364078,0.00904947,93102.0,93093.0,0.010748]
[1768858364282,0.00904947,93102.0,93090.0,0.010749]
[1768858367399,0.00904947,93102.0,93092.0,0.010748]
[1768858368295,0.00904947,93102.0,93086.0,0.00016116]
[1768858368495,0.00904947,93102.0,93095.0,0.010748]
[1768858369909,0.00904947,93102.0,93093.0,0.010748]
[1768858372113,0.00904947,93102.0,93094.0,0.010748]
[1768858372515,0.00904947,93102.0,93095.0,0.010748]
[1768858374311,0.00904947,93102.0,93096.0,0.010748]
[1768858375115,0.00904947,93102.0,93094.0,0.010748]
[1768858376418,0.00904947,93102.0,93091.0,0.010749]
[1768858379521,0.00904947,93102.0,93086.0,0.00016116]
[1768858380019,0.00904947,93102.0,93090.0,0.010749]
[1768858380724,0.00904947,93102.0,93088.0,0.010749]
[1768858381422,0.05093635,93102.0,93088.0,0.010749]
[1768858381623,0.00929409,93101.0,93088.0,0.010749]
[1768858382415,0.00929409,93101.0,93089.0,0.010749]
[1768858384723,0.00929409,93098.0,93086.0,0.00016116]
[1768858384922,0.00929409,93098.0,93083.0,0.09672]
[1768858384923,0.00929409,93092.0,93083.0,0.09672]
[1768858385129,0.18017674,93120.0,93069.0,0.04421735]
[1768858385130,0.00929409,93080.0,93073.0,0.07741442]
[1768858385426,0.04188688,93081.0,93065.0,0.09934842]
[1768858385427,0.04188688,93079.0,93065.0,0.010752]
[1768858385626,0.04188688,93079.0,93065.0,0.02647369]
[1768858386328,0.04188688,93079.0,93067.0,0.010751]
[1768858386534,9.599e-05,93078.0,93067.0,0.010751]
[1768858387535,9.599e-05,93078.0,93065.0,0.01572169]
[1768858387834,9.599e-05,93078.0,93064.0,0.01311596]
[1768858389934,9.599e-05,93078.0,93064.0,0.02880598]
[1768858390232,9.599e-05,93078.0,93064.0,0.01805398]
[1768858390433,9.599e-05,93078.0,93065.0,0.010752]
[1768858390732,9.599e-05,93078.0,93067.0,0.010751]
[1768858393128,9.599e-05,93078.0,93069.0,0.010751]
[1768858394028,9.599e-05,93078.0,93065.0,0.010752]
[1768858395332,9.599e-05,93078.0,93067.0,0.010751]
[1768858397233,9.599e-05,93078.0,93064.0,0.01805398]
[1768858398837,0.01084599,93078.0,93064.0,0.01805398]
[1768858399234,9.599e-05,93078.0,93064.0,0.01805398]
[1768858400529,0.01075,93077.0,93064.0,0.01805398]
[1768858400735,9.599e-05,93078.0,93065.0,0.010752]
[1768858402029,9.599e-05,93078.0,93066.0,0.010751]
[1768858404338,9.599e-05,93078.0,93068.0,0.010751]
[1768858404539,9.599e-05,93078.0,93069.0,0.010751]
[1768858404737,0.010748,93095.0,93076.0,0.00963196]
[1768858405039,0.09676,93088.0,93076.0,0.00963196]
[1768858405234,0.09676,93088.0,93077.0,0.00963196]
[1768858405438,0.09676,93088.0,93080.0,0.01075]
[1768858406139,0.09676,93088.0,93078.0,0.01075]
[1768858407242,0.09676,93088.0,93077.0,0.00963196]
[1768858410041,0.09676,93088.0,93076.0,0.05433226]
[1768858412038,0.09676,93088.0,93076.0,0.04358226]
[1768858412447,0.09676,93088.0,93074.0,0.02038296]
[1768858413552,0.09676,93088.0,93074.0,0.00963196]
[1768858414552,0.107509,93088.0,93074.0,0.00963196]
[1768858414745,0.107509,93088.0,93072.0,0.010751]
[1768858415047,0.010749,93086.0,93070.0,0.2006583]
[1768858415248,0.14692932,93088.0,93070.0,0.18027534]
[1768858416245,0.010749,93085.0,93070.0,0.18027534]
[1768858417455,0.01075,93084.0,93070.0,0.18027534]
[1768858420051,0.01075,93080.0,93068.0,0.00963196]
[1768858420256,0.01075,93080.0,93066.0,0.010751]
[1768858421052,0.01075,93080.0,93064.0,0.0278471]
[1768858421245,0.01075,93080.0,93065.0,0.010752]
[1768858422555,0.00903518,93084.0,93067.0,0.010751]
[1768858423249,0.01075,93081.0,93064.0,0.0278471]
[1768858423949,0.00903518,93084.0,93064.0,0.0278471]
[1768858424252,0.01978418,93084.0,93068.0,0.010751]
[1768858424553,0.010749,93084.0,93068.0,0.010751]
[1768858424853,0.14748435,93086.0,93065.0,0.0098811]
[1768858425654,0.00926181,93085.0,93065.0,0.0098811]
[1768858426056,0.01075,93079.0,93065.0,0.0098811]
[1768858426250,0.01075,93082.0,93068.0,0.010751]
[1768858429556,0.02001081,93085.0,93068.0,0.010751]
[1768858429755,0.01075,93084.0,93068.0,0.010751]
[1768858429959,0.00926181,93085.0,93065.0,0.0206331]
[1768858430157,0.01075,93080.0,93065.0,0.0206331]
[1768858430365,0.01075,93083.0,93066.0,0.0098811]
[1768858430861,0.01075,93083.0,93066.0,0.0206321]
[1768858435264,0.01075,93081.0,93066.0,0.0206321]
[1768858436268,0.01075,93084.0,93068.0,0.010751]
[1768858436467,0.01075,93084.0,93068.0,0.02054249]
[1768858437355,0.01075,93083.0,93068.0,0.02054249]
[1768858438572,0.01075,93083.0,93068.0,0.00979149]
[1768858438768,0.01075,93082.0,93068.0,0.00979149]
[1768858439669,0.01075,93080.0,93068.0,0.00979149]
[1768858440171,0.01075,93079.0,93068.0,0.00979149]
[1768858445381,0.01075,93082.0,93069.0,0.010751]
[1768858445678,0.01075,93082.0,93068.0,0.02054249]
[1768858448383,0.01075,93082.0,93068.0,0.00979149]
[1768858450286,0.01075,93080.0,93068.0,0.00979149]
[1768858451286,0.13822254,93086.0,93068.0,0.02054249]
[1768858451788,0.14790782,93086.0,93065.0,0.010752]
[1768858451992,0.01075,93079.0,93065.0,0.010752]
[1768858452191,0.01075,93079.0,93065.0,0.02054349]
[1768858452692,0.01075,93081.0,93065.0,0.02054349]
[1768858452891,0.01075,93081.0,93066.0,0.010751]
[1768858455493,0.01075,93079.0,93065.0,0.00979149]
[1768858457593,0.01075,93079.0,93065.0,0.02054349]
[1768858459194,0.01075,93081.0,93065.0,0.02054349]
[1768858459395,0.01075,93081.0,93066.0,0.010751]
[1768858460695,0.01075,93079.0,93065.0,0.00979149]
[1768858462095,0.14790782,93086.0,93065.0,0.00979149]
[1768858462288,0.01075,93079.0,93065.0,0.00979149]
[1768858462598,0.01075,93078.0,93065.0,0.00979149]
[1768858465198,0.01075,93078.0,93066.0,0.010752]
[1768858465795,0.01075,93080.0,93066.0,0.010752]
[1768858467597,0.01075,93083.0,93066.0,0.010752]
[1768858467793,0.01075,93083.0,93068.0,0.010751]
[1768858469301,0.01075,93083.0,93066.0,0.010752]
[1768858469598,0.01075,93082.0,93066.0,0.010752]
[1768858470000,0.01075,93081.0,93066.0,0.010752]
[1768858470302,0.01075,93080.0,93065.0,0.00979149]
[1768858470694,0.01075,93078.0,93064.0,0.01821514]
[1768858471899,0.00993744,93069.0,93061.0,0.09676]
[1768858472099,0.04207866,93060.0,93047.0,0.010754]
[1768858472293,0.04207866,93060.0,93049.0,0.01933383]
[1768858473287,0.04207866,93060.0,93050.0,0.010753]
[1768858473993,0.0520161,93059.0,93049.0,0.01933383]
[1768858474193,0.0627691,93053.0,93039.0,0.00012073]
[1768858474399,0.00993744,93045.0,93039.0,0.0166717]
[1768858474701,0.0520161,93044.0,93028.0,0.010756]
[1768858474903,0.0520161,93040.0,93029.0,0.01928491]
[1768858475605,0.04207866,93040.0,93033.0,0.010755]
[1768858475809,0.00016116,93046.0,93035.0,0.010755]
[1768858475810,0.04223982,93046.0,93035.0,0.010755]
[1768858475990,0.04223982,93046.0,93029.0,0.02906276]
[1768858476191,0.04207866,93058.0,93037.0,0.00977785]
[1768858476397,0.09676,93057.0,93040.0,0.010754]
[1768858476598,0.0520161,93055.0,93037.0,0.010755]
[1768858476797,0.0520161,93051.0,93034.0,0.010755]
[1768858477596,0.0520161,93051.0,93037.0,0.010755]
[1768858477804,0.04207866,93051.0,93039.0,0.010755]
[1768858479004,0.04207866,93051.0,93036.0,0.010755]
[1768858479202,0.04207866,93051.0,93038.0,0.010755]
[1768858480208,0.04207866,93051.0,93035.0,0.010755]
[1768858480409,0.0520161,93050.0,93035.0,0.010755]
[1768858480707,0.0520161,93050.0,93031.0,0.00993901]
[1768858480902,0.04207866,93050.0,93031.0,0.00993901]
[1768858481808,0.04207866,93050.0,93035.0,0.010755]
[1768858482208,0.04207866,93050.0,93031.0,0.00993901]
[1768858484412,0.04207866,93050.0,93036.0,0.010755]
[1768858485508,0.04207866,93050.0,93031.0,0.00993901]
[1768858485509,0.04207866,93050.0,93033.0,0.010755]
[1768858487204,0.05160446,93050.0,93033.0,0.010755]
[1768858487397,0.05160446,93050.0,93032.0,0.010755]
[1768858487610,0.05303547,93049.0,93032.0,0.010755]
[1768858487810,0.05303547,93049.0,93031.0,0.00993901]
[1768858487811,0.0095258,93041.0,93031.0,0.00016116]
[1768858488013,0.04350967,93040.0,93031.0,0.00016116]
[1768858488205,0.0095258,93039.0,93031.0,0.00016116]
[1768858488400,0.05303547,93034.0,93024.0,0.00236498]
[1768858488602,0.09676,93047.0,93020.0,0.09676]
[1768858488603,0.05303547,93031.0,93020.0,0.09676]
[1768858488909,0.05303547,93031.0,93020.0,0.107517]
[1768858489103,0.04350967,93031.0,93020.0,0.107517]
[1768858489408,0.04350967,93031.0,93025.0,0.010756]
[1768858489611,0.04350967,93031.0,93026.0,0.010756]
[1768858489809,8e-07,93035.0,93032.0,0.010755]
[1768858490003,0.00016116,93045.0,93034.0,0.010755]
[1768858490714,0.00016116,93045.0,93036.0,0.010755]
[1768858491707,0.04350967,93044.0,93038.0,0.010755]
[1768858491915,0.04655138,93042.0,93026.0,0.010756]
[1768858492309,0.04655138,93042.0,93034.0,0.010755]
[1768858492616,0.04655138,93042.0,93020.0,0.12331102]
[1768858493018,0.00304171,93040.0,93025.0,0.010756]
[1768858493421,0.00304171,93040.0,93021.0,0.00942448]
[1768858493605,0.00304171,93040.0,93021.0,0.02018148]
[1768858493811,0.00304171,93040.0,93029.0,0.010756]
[1768858494421,0.00304171,93040.0,93030.0,0.010756]
[1768858494623,0.00304171,93040.0,93022.0,0.010757]
[1768858495118,0.00304171,93040.0,93021.0,0.00942448]
[1768858495523,0.00304171,93040.0,93022.0,0.010757]
[1768858495822,0.00304171,93040.0,93035.0,0.010755]
[1768858496517,0.04422316,93041.0,93035.0,0.010755]
[1768858496712,0.04730476,93044.0,93038.0,0.010755]
[1768858496912,0.04730476,93044.0,93034.0,0.010755]
[1768858496913,0.0030816,93043.0,93034.0,0.010755]
[1768858497212,0.00016116,93045.0,93034.0,0.010755]
[1768858497213,0.0030816,93041.0,93034.0,0.010755]
[1768858497411,0.0030816,93041.0,93022.0,0.010757]
[1768858497623,0.0030816,93041.0,93029.0,0.010756]
[1768858497920,0.00338038,93039.0,93021.0,0.00942448]
[1768858498108,0.00338038,93038.0,93020.0,0.11407372]
[1768858498311,0.04422316,93039.0,93020.0,0.1234982]
[1768858498506,0.04422316,93039.0,93021.0,0.00942448]
[1768858498714,0.04422316,93039.0,93028.0,0.010756]
[1768858500119,0.04811383,93039.0,93020.0,0.16124408]
[1768858500322,0.00389067,93034.0,93020.0,0.107517]
[1768858500622,0.00389067,93034.0,93025.0,0.010756]
[1768858500813,0.04422316,93035.0,93025.0,0.010756]
[1768858501823,0.04422316,93035.0,93020.0,0.09676]
[1768858502123,0.00389067,93038.0,93030.0,0.010756]
[1768858502622,0.04422316,93040.0,93030.0,0.010756]
[1768858504029,0.0484166,93040.0,93028.0,0.010756]
[1768858504325,0.0484166,93040.0,93029.0,0.010756]
[1768858505027,0.00419344,93043.0,93023.0,0.00942448]
[1768858505229,0.0968,93043.0,93036.0,0.010755]
[1768858505431,0.0968,93043.0,93037.0,0.010755]
[1768858506227,0.00016116,93045.0,93031.0,0.00942448]
[1768858506429,0.00016116,93045.0,93038.0,0.010755]
[1768858506936,0.00016116,93045.0,93036.0,0.010755]
[1768858507641,0.00016116,93045.0,93037.0,0.010755]
[1768858509432,0.00016116,93045.0,93035.0,0.010755]
[1768858509627,0.00016116,93045.0,93036.0,0.010755]
[1768858510734,0.00016116,93045.0,93032.0,0.00942448]
[1768858511333,0.00016116,93045.0,93036.0,0.010755]
[1768858511535,0.00016116,93045.0,93038.0,0.010755]
[1768858512441,0.00016116,93045.0,93036.0,0.010755]
[1768858514437,1.6e-07,93045.0,93037.0,0.04717036]
[1768858514641,0.010751,93071.0,93030.0,0.010756]
[1768858514642,0.0968,93054.0,93041.0,0.00942448]
[1768858514827,0.004293,93061.0,93041.0,0.00942448]
[1768858515029,0.0968,93056.0,93044.0,0.010754]
[1768858516345,0.004293,93059.0,93044.0,0.010754]
[1768858516643,0.12080393,93058.0,93044.0,0.010754]
[1768858516842,0.0968,93058.0,93044.0,0.010754]
[1768858517733,0.0968,93058.0,93041.0,0.010754]
[1768858519743,0.0968,93058.0,93043.0,0.010754]
[1768858519947,0.0968,93063.0,93049.0,0.00942448]
[1768858520140,0.0968,93063.0,93053.0,0.010753]
[1768858521156,0.0968,93063.0,93050.0,0.19110803]
[1768858521347,0.0968,93063.0,93050.0,0.18035503]
[1768858525649,0.0968,93063.0,93052.0,0.010753]
[1768858527756,0.0968,93063.0,93050.0,0.18035503]
[1768858527957,0.00236396,93064.0,93050.0,0.19011891]
[1768858528657,0.01075,93076.0,93055.0,0.00976388]
[1768858528862,0.09676,93075.0,93066.0,0.18035503]
[1768858529156,0.09676,93076.0,93061.0,0.00976388]
[1768858529363,0.09676,93076.0,93060.0,0.18035503]
[1768858529364,0.0045673,93075.0,93060.0,0.18035503]
[1768858529653,0.01518857,93074.0,93061.0,0.00016125]
[1768858530750,0.00443757,93074.0,93061.0,0.00016125]
[1768858530960,0.00443757,93074.0,93062.0,0.010752]
[1768858531163,0.14266683,93076.0,93064.0,0.010752]
[1768858532263,0.14266683,93076.0,93061.0,0.00016125]
[1768858532462,0.09676,93076.0,93061.0,0.00016125]
[1768858534369,0.09676,93076.0,93062.0,0.010752]
[1768858534663,0.10131734,93076.0,93061.0,0.00016125]
[1768858534869,0.01530834,93075.0,93061.0,0.00016125]
[1768858536371,0.00455734,93075.0,93061.0,0.01091325]
[1768858536857,0.00455734,93075.0,93063.0,0.010752]
[1768858539471,0.00455734,93075.0,93064.0,0.010752]
[1768858539672,0.00455734,93075.0,93065.0,0.010752]
[1768858540474,0.00455734,93075.0,93061.0,0.01091325]
[1768858540768,0.00455734,93075.0,93063.0,0.010752]
[1768858542270,0.09676,93076.0,93063.0,0.00978555]
[1768858542674,0.09676,93076.0,93068.0,0.010751]
[1768858545670,0.04534783,93083.0,93062.0,0.00978555]
[1768858545876,0.09676,93082.0,93070.0,0.18035503]
[1768858546670,0.00458679,93080.0,93065.0,0.010752]
[1768858547071,0.00458679,93080.0,93066.0,0.010751]
[1768858547378,0.00458679,93080.0,93061.0,0.00016125]
[1768858548476,0.00458679,93080.0,93064.0,0.010752]
[1768858548978,0.01527367,93079.0,93064.0,0.010752]
[1768858550570,0.00452367,93079.0,93064.0,0.010752]
[1768858550766,0.01527367,93079.0,93064.0,0.010752]
[1768858550970,0.04534783,93081.0,93061.0,0.00016125]
[1768858550971,0.04993651,93076.0,93061.0,0.00016125]
[1768858551171,0.04534783,93074.0,93052.0,0.05453276]
[1768858551479,0.01075,93081.0,93053.0,0.09676]
[1768858551480,0.00458868,93069.0,93053.0,0.09676]
[1768858551674,0.00458868,93069.0,93057.0,0.010753]
[1768858552072,0.00458868,93069.0,93053.0,0.09676]
[1768858552487,0.04534783,93070.0,93053.0,0.09676]
[1768858552780,0.00458868,93072.0,93053.0,0.10654555]
[1768858553585,0.00458868,93072.0,93058.0,0.010752]
[1768858554483,0.010751,93071.0,93058.0,0.010752]
[1768858554885,0.00458868,93072.0,93053.0,0.10654555]
[1768858555084,0.00458868,93072.0,93060.0,0.010752]
[1768858555883,0.00458868,93072.0,93062.0,0.010752]
[1768858556085,0.00458868,93072.0,93053.0,0.10654555]
[1768858556484,0.00458868,93072.0,93066.0,0.010751]
[1768858556680,0.00501135,93079.0,93060.0,0.18954285]
[1768858556887,1.6e-07,93079.0,93070.0,0.00918782]
[1768858557286,0.09676,93080.0,93070.0,0.00918782]
[1768858558885,0.04237588,93093.0,93073.0,0.00918782]
[1768858559085,0.09676,93092.0,93080.0,0.18035503]
[1768858560282,0.09676,93092.0,93081.0,0.01075]
[1768858561390,0.09676,93092.0,93080.0,0.18035503]
[1768858562592,0.09676,93092.0,93080.0,0.01075]
[1768858562892,0.09676,93092.0,93080.0,0.19110503]
[1768858563291,0.09676,93092.0,93080.0,0.18035503]
[1768858564295,0.09676,93092.0,93081.0,0.01075]
[1768858565205,0.09676,93092.0,93074.0,0.00918782]
[1768858565398,0.04729366,93083.0,93070.0,0.010751]
[1768858565601,0.00491778,93081.0,93070.0,0.010751]
[1768858565801,0.00491778,93080.0,93070.0,0.010751]
[1768858566291,0.00491778,93080.0,93070.0,0.19110603]
[1768858566697,0.04237588,93081.0,93070.0,0.19110603]
[1768858567697,0.04237588,93081.0,93072.0,0.010751]
[1768858568995,0.04237588,93081.0,93066.0,0.010751]
[1768858569193,0.00498191,93078.0,93064.0,0.00236396]
[1768858569401,0.00498191,93076.0,93064.0,0.00236396]
[1768858570090,0.04237588,93078.0,93064.0,0.00236396]
[1768858570701,0.00498191,93080.0,93071.0,0.010751]
[1768858571298,0.09676,93082.0,93069.0,0.00236385]
[1768858572295,0.09676,93082.0,93070.0,0.18035503]
[1768858572990,0.09676,93082.0,93069.0,0.00236385]
[1768858573600,0.10175433,93082.0,93069.0,0.00236385]
[1768858573800,0.11250433,93082.0,93069.0,0.00236385]
[1768858575293,0.10175433,93082.0,93069.0,0.00236385]
[1768858575500,0.10175433,93082.0,93069.0,0.01311485]
[1768858577102,0.10175433,93082.0,93071.0,0.010751]
[1768858580506,0.00476508,93081.0,93071.0,0.010751]
[1768858580808,0.00476508,93081.0,93069.0,0.01311485]
[1768858581302,0.00476508,93081.0,93069.0,0.00236385]
[1768858581898,0.01551508,93081.0,93069.0,0.00236385]
[1768858584621,0.01552178,93077.0,93069.0,0.00236385]
[1768858584821,0.01552178,93077.0,93064.0,0.01311596]
[1768858585016,0.00477178,93077.0,93066.0,0.010752]
[1768858585510,0.09676,93080.0,93064.0,0.01233985]
[1768858585927,0.09676,93080.0,93064.0,0.00236396]
[1768858586419,0.09676,93080.0,93067.0,0.010751]
[1768858586922,0.09676,93080.0,93064.0,0.00236396]
[1768858587619,0.09676,93080.0,93070.0,0.010751]
[1768858588018,0.09676,93080.0,93068.0,0.010751]
[1768858589623,0.00477178,93082.0,93068.0,0.010751]
[1768858589824,0.00477178,93082.0,93064.0,0.00236396]
[1768858590324,0.00477178,93082.0,93069.0,0.010751]
[1768858591027,0.00477178,93082.0,93064.0,0.00236396]
[1768858591927,0.07787178,93083.0,93064.0,0.00236396]
[1768858593224,0.07787178,93083.0,93070.0,0.010751]
[1768858593830,0.07794125,93083.0,93070.0,0.010751]
[1768858594322,0.07794125,93083.0,93068.0,0.010751]
[1768858595030,6.953e-05,93082.0,93068.0,0.010751]
[1768858595427,6.953e-05,93082.0,93066.0,0.010752]
[1768858596527,0.01075,93081.0,93066.0,0.010752]
[1768858597333,0.01095506,93079.0,93064.0,0.00236396]
[1768858599330,0.01075,93076.0,93064.0,0.00236396]
[1768858600326,0.01075,93078.0,93064.0,0.00236396]
[1768858602734,0.01095506,93079.0,93065.0,0.010752]
[1768858604838,0.00020506,93079.0,93064.0,0.00236396]
[1768858606542,0.01075,93076.0,93064.0,0.00236396]
[1768858609831,0.00020506,93079.0,93064.0,0.00236396]
[1768858610938,0.01075,93078.0,93064.0,0.00236396]
[1768858611844,0.01075,93076.0,93064.0,0.00236396]
[1768858612044,0.00020506,93079.0,93064.0,0.00236396]
[1768858612645,0.04512848,93081.0,93068.0,0.010751]
[1768858613339,0.05587848,93081.0,93066.0,0.010752]
[1768858614744,0.01075,93080.0,93066.0,0.010752]
[1768858620041,0.01075,93080.0,93064.0,0.01311596]
[1768858622345,0.01075,93078.0,93064.0,0.00236396]
[1768858625150,0.01075,93078.0,93064.0,0.01311596]
[1768858625650,0.04512848,93081.0,93064.0,0.00236396]
[1768858627452,0.01075,93078.0,93064.0,0.00236396]
[1768858627845,0.04512848,93081.0,93064.0,0.00236396]
[1768858629854,0.04512848,93081.0,93064.0,0.01208855]
[1768858630056,0.04512848,93081.0,93064.0,0.00236396]
[1768858630558,0.09676,93082.0,93064.0,0.01208855]
[1768858630753,0.09676,93082.0,93070.0,0.010751]
[1768858630949,0.09676,93082.0,93068.0,0.010751]
[1768858631145,0.01075,93084.0,93068.0,0.010751]
[1768858631353,0.09676,93083.0,93064.0,0.01208855]
[1768858632458,0.09676,93083.0,93069.0,0.010751]
[1768858632858,0.09676,93083.0,93064.0,0.01208855]
[1768858632859,0.09676,93083.0,93065.0,0.010752]
[1768858633159,0.09676,93083.0,93067.0,0.00972459]
[1768858633755,0.09676,93083.0,93073.0,0.010751]
[1768858634058,0.09676,93087.0,93077.0,0.01075]
[1768858634555,0.00236334,93089.0,93077.0,0.01075]
[1768858634966,0.00236334,93089.0,93077.0,0.00675]
[1768858635167,0.00236334,93089.0,93073.0,0.00972459]
[1768858636460,0.00236334,93089.0,93078.0,0.01075]
[1768858637160,0.00236334,93089.0,93074.0,0.00972459]
[1768858637561,0.00236334,93089.0,93076.0,0.01075]
[1768858637751,0.00236334,93089.0,93073.0,0.05676199]
[1768858638356,0.01311234,93089.0,93073.0,0.05676199]
[1768858639252,0.00236334,93089.0,93075.0,0.01075]
[1768858639761,0.00236334,93089.0,93076.0,0.01075]
[1768858640163,0.00236334,93089.0,93078.0,0.01075]
[1768858643970,0.00236334,93089.0,93073.0,0.05584142]
[1768858645164,0.00236334,93089.0,93077.0,0.01075]
[1768858649968,0.010749,93088.0,93075.0,0.01075]
[1768858650665,0.010749,93086.0,93073.0,0.06659242]
[1768858650864,0.04499909,93086.0,93061.0,0.14749409]
[1768858651070,0.04499909,93079.0,93062.0,0.010752]
[1768858651270,0.04499909,93076.0,93061.0,0.107512]
[1768858651472,0.04499909,93076.0,93061.0,0.09676]
[1768858651671,0.04499909,93076.0,93069.0,0.010751]
[1768858651870,0.18022319,93080.0,93069.0,0.010751]
[1768858652070,0.04499909,93081.0,93069.0,0.010751]
[1768858652574,0.04499909,93081.0,93061.0,0.09676]
[1768858654377,0.04499909,93081.0,93068.0,0.010751]
[1768858654785,0.04499909,93081.0,93066.0,0.010752]
[1768858655484,0.04499909,93081.0,93063.0,0.010752]
[1768858655977,0.01075,93080.0,93065.0,0.010752]
[1768858657182,0.01075,93080.0,93067.0,0.010751]
[1768858657386,0.04499909,93081.0,93067.0,0.010751]
[1768858658087,0.05574909,93081.0,93067.0,0.010751]
[1768858658786,0.05574909,93081.0,93061.0,0.09676]
[1768858658787,0.01075,93079.0,93061.0,0.09676]
[1768858660386,0.01075,93078.0,93065.0,0.010752]
[1768858663891,0.22522228,93080.0,93068.0,0.010751]
[1768858666694,0.22522228,93080.0,93061.0,0.09676]
[1768858669294,0.22522228,93080.0,93066.0,0.010751]
[1768858670199,0.22522228,93080.0,93068.0,0.010751]
[1768858671200,0.01075,93079.0,93064.0,0.01311596]
[1768858671398,0.01075,93078.0,93064.0,0.01311596]
[1768858671700,0.23597228,93080.0,93064.0,0.01311596]
[1768858672699,0.23597228,93080.0,93065.0,0.010752]
[1768858674993,0.01075,93079.0,93065.0,0.010752]
[1768858676404,0.01075,93077.0,93064.0,0.00236396]
[1768858681095,0.32198228,93080.0,93064.0,0.00236396]
[1768858681294,0.32198228,93080.0,93068.0,0.010751]
[1768858683213,0.32198228,93080.0,93064.0,0.00236396]
[1768858684311,0.14175909,93080.0,93072.0,0.010751]
[1768858684609,0.09676,93080.0,93070.0,0.010751]
[1768858685313,0.09676,93081.0,93070.0,0.010751]
[1768858688714,0.09676,93081.0,93068.0,0.010751]
[1768858693115,0.13991409,93081.0,93066.0,0.010751]
[1768858693617,0.15066409,93081.0,93066.0,0.010751]
[1768858694020,0.15066409,93081.0,93064.0,0.00236396]
[1768858694021,0.13991409,93081.0,93064.0,0.00236396]
[1768858694321,0.13991409,93081.0,93068.0,0.010751]
[1768858694522,0.13991409,93081.0,93064.0,0.00236396]
[1768858695423,0.13991409,93081.0,93069.0,0.010751]
[1768858696323,0.13991409,93081.0,93070.0,0.010751]
[1768858696814,0.13991409,93081.0,93064.0,0.00236396]
[1768858698427,0.04315409,93080.0,93064.0,0.00236396]
[1768858698932,0.04315409,93080.0,93071.0,0.010751]
[1768858699631,0.04315409,93080.0,93064.0,0.00236396]
[1768858700631,0.04315409,93080.0,93068.0,0.010751]
[1768858701029,0.04315409,93080.0,93070.0,0.010751]
[1768858703837,0.04315409,93080.0,93064.0,0.00236396]
[1768858704042,0.04315409,93080.0,93071.0,0.010751]
[1768858705633,0.04315409,93080.0,93064.0,0.00236396]
[1768858706242,0.04315409,93080.0,93072.0,0.010751]
[1768858707043,0.04315409,93080.0,93073.0,0.010751]
[1768858708344,0.04315409,93080.0,93072.0,0.010751]
[1768858710844,0.04315409,93080.0,93064.0,0.00236396]
[1768858711842,0.09676,93081.0,93068.0,0.00993935]
[1768858712139,0.00236334,93089.0,93072.0,0.00993935]
[1768858712944,0.00236334,93089.0,93073.0,0.010751]
[1768858713145,0.04395254,93089.0,93073.0,0.010751]
[1768858713349,0.0523382,93088.0,93073.0,0.010751]
[1768858713645,0.0415892,93087.0,93073.0,0.010751]
[1768858713946,0.0415892,93087.0,93067.0,0.00993935]
[1768858714542,0.0415892,93087.0,93068.0,0.00993935]
[1768858715851,0.0415892,93087.0,93077.0,0.01075]